{"text_format":"3","workbook":"xlsx","n_sheets":1,"sheets":["Oferta"],"not_rendered":{"images":1,"defined_names":20},"read":"whole","date_system":"1900"}

{"sheet":"Oferta","index":0,"n_rows":39,"n_cols":7,"rows_kept":39,"merged":[[0,1,3,1],[0,3,0,6],[1,4,1,6],[2,4,2,6],[32,3,35,4],[36,3,36,6],[37,3,37,5],[38,3,38,5]]}
[{"$nulls":3},"OFERTA WYKONANIA PRAC"]
[{"$nulls":3},"Nazwa firmy","| W tej komórce wprowadź adres firmy (ulicę i numer)"]
[{"$nulls":3},"Telefon","| W tej komórce wprowadź numer faksu firmy i adres e-mail kontaktu"]
[{"$nulls":3},"ILOŚĆ","OPIS","CENA JEDNOSTKOWA","KWOTA"]
[null,"KLIENT",null,10,"Pozycja 1",{"v":165,"d":"165.00 zł"},{"$f":"IFERROR(Pozycje[[#This Row],[ILOŚĆ]]*Pozycje[[#This Row],[CENA JEDNOSTKOWA]], \"\")","v":{"v":1650,"d":"1,650.00 zł"}}]
[null,"W tej komórce wprowadź imię i nazwisko klienta",null,21,"Pozycja 2",{"v":40,"d":"40.00 zł"},{"$f":"IFERROR(Pozycje[[#This Row],[ILOŚĆ]]*Pozycje[[#This Row],[CENA JEDNOSTKOWA]], \"\")","v":{"v":840,"d":"840.00 zł"}}]
[null,"NR OSZACOWANIA",null,5,"Pozycja 3",{"v":10.5,"d":"10.50 zł"},{"$f":"IFERROR(Pozycje[[#This Row],[ILOŚĆ]]*Pozycje[[#This Row],[CENA JEDNOSTKOWA]], \"\")","v":{"v":52.5,"d":"52.50 zł"}}]
[null,"C-1234",null,164,"Pozycja 4",{"v":2.75,"d":"2.75 zł"},{"$f":"IFERROR(Pozycje[[#This Row],[ILOŚĆ]]*Pozycje[[#This Row],[CENA JEDNOSTKOWA]], \"\")","v":{"v":451,"d":"451.00 zł"}}]
[null,"DATA",null,6,"Pozycja 5",{"v":12,"d":"12.00 zł"},{"$f":"IFERROR(Pozycje[[#This Row],[ILOŚĆ]]*Pozycje[[#This Row],[CENA JEDNOSTKOWA]], \"\")","v":{"v":72,"d":"72.00 zł"}}]
[null,{"$f":"TODAY()","v":"2018-11-19"},null,18,"Pozycja 6",{"v":5.5,"d":"5.50 zł"},{"$f":"IFERROR(Pozycje[[#This Row],[ILOŚĆ]]*Pozycje[[#This Row],[CENA JEDNOSTKOWA]], \"\")","v":{"v":99,"d":"99.00 zł"}}]
[null,"ADRES",null,1,"Pozycja 7",{"v":25,"d":"25.00 zł"},{"$f":"IFERROR(Pozycje[[#This Row],[ILOŚĆ]]*Pozycje[[#This Row],[CENA JEDNOSTKOWA]], \"\")","v":{"v":25,"d":"25.00 zł"}}]
[null,"W tej komórce wprowadź adres klienta",{"$nulls":4},{"$f":"IFERROR(Pozycje[[#This Row],[ILOŚĆ]]*Pozycje[[#This Row],[CENA JEDNOSTKOWA]], \"\")","v":{"v":0,"d":"0.00 zł"}}]
[null,"MIASTO/WOJEWÓDZTWO/KOD POCZTOWY",{"$nulls":4},{"$f":"IFERROR(Pozycje[[#This Row],[ILOŚĆ]]*Pozycje[[#This Row],[CENA JEDNOSTKOWA]], \"\")","v":{"v":0,"d":"0.00 zł"}}]
[null,"W tej komórce wprowadź kod pocztowy i miasto klienta",{"$nulls":4},{"$f":"IFERROR(Pozycje[[#This Row],[ILOŚĆ]]*Pozycje[[#This Row],[CENA JEDNOSTKOWA]], \"\")","v":{"v":0,"d":"0.00 zł"}}]
[null,"TELEFON",{"$nulls":4},{"$f":"IFERROR(Pozycje[[#This Row],[ILOŚĆ]]*Pozycje[[#This Row],[CENA JEDNOSTKOWA]], \"\")","v":{"v":0,"d":"0.00 zł"}}]
[null,"W tej komórce wprowadź numer telefonu klienta",{"$nulls":4},{"$f":"IFERROR(Pozycje[[#This Row],[ILOŚĆ]]*Pozycje[[#This Row],[CENA JEDNOSTKOWA]], \"\")","v":{"v":0,"d":"0.00 zł"}}]
[null,"ADRES E-MAIL",{"$nulls":4},{"$f":"IFERROR(Pozycje[[#This Row],[ILOŚĆ]]*Pozycje[[#This Row],[CENA JEDNOSTKOWA]], \"\")","v":{"v":0,"d":"0.00 zł"}}]
[null,"W tej komórce wprowadź adres e-mail klienta",{"$nulls":4},{"$f":"IFERROR(Pozycje[[#This Row],[ILOŚĆ]]*Pozycje[[#This Row],[CENA JEDNOSTKOWA]], \"\")","v":{"v":0,"d":"0.00 zł"}}]
[null,"SPRZEDAWCA",{"$nulls":4},{"$f":"IFERROR(Pozycje[[#This Row],[ILOŚĆ]]*Pozycje[[#This Row],[CENA JEDNOSTKOWA]], \"\")","v":{"v":0,"d":"0.00 zł"}}]
[null,"W tej komórce wprowadź imię i nazwisko sprzedawcy",{"$nulls":4},{"$f":"IFERROR(Pozycje[[#This Row],[ILOŚĆ]]*Pozycje[[#This Row],[CENA JEDNOSTKOWA]], \"\")","v":{"v":0,"d":"0.00 zł"}}]
[null,"PROJEKT",{"$nulls":4},{"$f":"IFERROR(Pozycje[[#This Row],[ILOŚĆ]]*Pozycje[[#This Row],[CENA JEDNOSTKOWA]], \"\")","v":{"v":0,"d":"0.00 zł"}}]
[null,"W tej komórce wprowadź nazwę projektu",{"$nulls":4},{"$f":"IFERROR(Pozycje[[#This Row],[ILOŚĆ]]*Pozycje[[#This Row],[CENA JEDNOSTKOWA]], \"\")","v":{"v":0,"d":"0.00 zł"}}]
[null,"PRZYGOTOWANE PRZEZ:",{"$nulls":4},{"$f":"IFERROR(Pozycje[[#This Row],[ILOŚĆ]]*Pozycje[[#This Row],[CENA JEDNOSTKOWA]], \"\")","v":{"v":0,"d":"0.00 zł"}}]
[null,"W tej komórce wprowadź imię i nazwisko osoby przygotowującej",{"$nulls":4},{"$f":"IFERROR(Pozycje[[#This Row],[ILOŚĆ]]*Pozycje[[#This Row],[CENA JEDNOSTKOWA]], \"\")","v":{"v":0,"d":"0.00 zł"}}]
[null,"UWAGA",{"$nulls":4},{"$f":"IFERROR(Pozycje[[#This Row],[ILOŚĆ]]*Pozycje[[#This Row],[CENA JEDNOSTKOWA]], \"\")","v":{"v":0,"d":"0.00 zł"}}]
[null,"W tej komórce wprowadź nazwę i adres oferty",{"$nulls":4},{"$f":"IFERROR(Pozycje[[#This Row],[ILOŚĆ]]*Pozycje[[#This Row],[CENA JEDNOSTKOWA]], \"\")","v":{"v":0,"d":"0.00 zł"}}]
[null,"WARUNKI PŁATNOŚCI",{"$nulls":4},{"$f":"IFERROR(Pozycje[[#This Row],[ILOŚĆ]]*Pozycje[[#This Row],[CENA JEDNOSTKOWA]], \"\")","v":{"v":0,"d":"0.00 zł"}}]
[null,"30 dni od daty wystawienia faktury",{"$nulls":4},{"$f":"IFERROR(Pozycje[[#This Row],[ILOŚĆ]]*Pozycje[[#This Row],[CENA JEDNOSTKOWA]], \"\")","v":{"v":0,"d":"0.00 zł"}}]
[null,"DATA UKOŃCZENIA",{"$nulls":4},{"$f":"IFERROR(Pozycje[[#This Row],[ILOŚĆ]]*Pozycje[[#This Row],[CENA JEDNOSTKOWA]], \"\")","v":{"v":0,"d":"0.00 zł"}}]
[null,{"$f":"TODAY()+30","v":"2018-12-19"},{"$nulls":4},{"$f":"IFERROR(Pozycje[[#This Row],[ILOŚĆ]]*Pozycje[[#This Row],[CENA JEDNOSTKOWA]], \"\")","v":{"v":0,"d":"0.00 zł"}}]
[{"$nulls":5},"SUMA CZĘŚCIOWA",{"$f":"SUBTOTAL(109,Pozycje[KWOTA])","v":{"v":3189.5,"d":"3,189.50 zł"}}]
[{"$nulls":3},"TA OFERTA OBEJMUJE WYMIENIONE WARUNKI:",null,"STAWKA PODATKOWA ",{"v":0.0775,"d":"7.75%"}]
[{"$nulls":3},"Tutaj wprowadź warunki",null,"PODATEK OD SPRZEDAŻY ",{"$f":"IFERROR(Suma_częściowa*Stawka_podatku, \"\")","v":{"v":247.18625,"d":"247.19 zł"}}]
[{"$nulls":5},"INNE "]
[{"$nulls":5},"SUMA ",{"$f":"IFERROR(Suma_częściowa+G33+Inne, \"\")","v":{"v":3436.68625,"d":"3,436.69 zł"}}]
[]
[{"$nulls":3},"Podpisz poniżej, aby zaakceptować ofertę:"]
[]
[{"$nulls":3},"Upoważniony przedstawiciel",null,null,"Data"]